bitfinex-derivatives/quotes_ETHF0:USTF0_20251013
["timestamp","ask_amount","ask_price","bid_price","bid_amount"]
[1760330332922,0.00192246,4130.1,4130.0,0.6565]
[1760330335628,0.82837,4131.1,4130.7,0.4354]
[1760330335929,0.393,4131.0,4130.8,0.89789]
[1760330336132,4.03616,4131.2,4131.1,0.4625]
[1760330336326,3.2078,4131.2,4131.1,0.4625]
[1760330336528,3.21002424,4131.2,4131.1,0.4625]
[1760330336724,0.00222424,4131.2,4131.1,0.4625]
[1760330337536,0.00222424,4131.2,4131.1,6.15480288]
[1760330337834,0.393,4132.6,4131.2,1.08838]
[1760330338131,0.393,4132.6,4131.1,6.15480288]
[1760330338132,0.393,4132.0,4131.8,3.2078]
[1760330338337,0.022,4132.8,4131.5,0.194]
[1760330338338,0.393,4132.3,4131.5,0.194]
[1760330338538,0.393,4131.5,4131.3,0.43534]
[1760330338736,0.43531,4131.7,4131.4,0.4625]
[1760330338937,0.83097903,4131.7,4131.5,0.4625]
[1760330339133,0.43797903,4131.7,4131.5,0.4625]
[1760330339337,0.393,4131.5,4131.2,3.64315]
[1760330339632,0.43532,4131.6,4131.4,0.4625]
[1760330340241,0.00266903,4131.7,4131.6,0.4625]
[1760330342441,0.00266903,4131.7,4131.5,0.43532]
[1760330342636,0.393,4131.6,4131.5,0.43532]
[1760330343032,0.393,4131.5,4131.2,3.6703]
[1760330343232,0.393,4131.5,4131.3,0.4625]
[1760330343445,0.39566903,4131.7,4131.5,0.89782]
[1760330343638,0.83097903,4131.7,4131.5,0.89782]
[1760330343836,0.393,4131.6,4131.5,0.4625]
[1760330344436,0.43532,4131.6,4131.3,0.4625]
[1760330344635,0.00266903,4131.7,4131.6,0.4625]
[1760330345439,0.39566903,4131.7,4131.5,0.194]
[1760330345633,0.82834,4131.4,4131.2,4.10565]
[1760330345940,0.393,4131.4,4131.2,4.10565]
[1760330346141,0.393,4131.4,4131.2,3.64315]
[1760330346341,0.393,4131.4,4131.3,0.43534]
[1760330346539,0.393,4131.4,4131.2,3.6703]
[1760330346733,0.5931,4131.0,4130.9,0.43538]
[1760330346929,0.393,4131.5,4130.9,0.7765]
[1760330347134,0.393,4131.5,4130.7,4.29632]
[1760330347135,0.72813,4131.5,4131.4,0.7825]
[1760330347938,0.73076903,4131.7,4131.6,1.0965]
[1760330348142,0.29546903,4131.7,4131.6,1.0965]
[1760330348345,0.00266903,4131.7,4131.6,0.4625]
[1760330349848,0.39566903,4131.7,4131.6,0.4625]
[1760330350745,0.82833,4131.5,4131.4,0.4625]
[1760330351147,0.43533,4131.5,4131.4,0.4625]
[1760330351444,0.43797903,4131.7,4131.4,0.89783]
[1760330351647,0.43797903,4131.7,4131.6,0.4625]
[1760330351836,1.03107903,4131.7,4131.6,0.4625]
[1760330352151,1.03107903,4131.7,4131.6,0.7825]
[1760330352852,1.42407903,4131.7,4131.6,0.4625]
[1760330353051,1.02843,4131.4,4131.3,0.7825]
[1760330353349,1.42143,4131.4,4131.3,0.4625]
[1760330354353,0.9861,4131.0,4130.9,3.6703]
[1760330354542,0.5931,4131.0,4130.9,4.3043]
[1760330354940,0.2928,4131.0,4130.9,4.3043]
[1760330355454,0.72813,4131.5,4131.4,0.32]
[1760330355646,0.72813,4131.5,4131.4,0.7825]
[1760330355953,1.02843,4131.5,4131.4,0.7825]
[1760330356749,1.40543,4131.5,4131.4,0.7825]
[1760330358153,1.40543,4131.5,4131.4,0.4625]
[1760330358349,0.43536,4131.2,4131.1,0.75026]
[1760330358649,0.43536,4131.2,4131.0,0.194]
[1760330358650,0.74984,4131.4,4131.3,0.3149]
[1760330358851,0.74984,4131.4,4131.3,0.6188]
[1760330359050,0.74984,4131.4,4131.3,1.0859]
[1760330359252,1.05384,4131.4,4131.3,1.0859]
[1760330359552,1.05384,4131.4,4131.3,0.782]
[1760330359553,1.43084,4131.4,4131.3,0.782]
[1760330359758,1.05384,4131.4,4131.3,0.782]
[1760330360052,0.00266903,4131.7,4131.5,0.43531]
[1760330360354,0.3145,4131.6,4131.5,1.70231]
[1760330362049,0.9955,4131.6,4131.5,0.6482]
[1760330362258,0.43797903,4131.7,4131.3,0.43534]
[1760330362259,0.9955,4131.4,4131.3,0.90244]
[1760330362553,0.9955,4131.2,4131.1,0.4671]
[1760330362954,0.6185,4131.2,4131.1,1.0859]
[1760330363150,0.3145,4131.2,4131.1,1.0859]
[1760330363451,0.9955,4131.2,4131.1,0.4671]
[1760330363646,1.43086,4131.2,4131.0,0.62937]
[1760330363852,0.9955,4131.1,4131.0,0.4671]
[1760330364157,0.6185,4131.1,4131.0,1.267]
[1760330364359,0.2254824,4131.1,4131.0,1.267]
[1760330366050,0.43538,4131.0,4130.9,3.2078]
[1760330366255,1.08213106,4131.0,4130.9,3.2078]
[1760330367061,1.08213106,4131.0,4130.9,3.6749]
[1760330369960,0.43542,4130.6,4130.5,0.194]
[1760330370162,1.08231934,4130.6,4130.5,0.194]
[1760330370460,1.08231934,4130.6,4130.5,0.6611]
[1760330371657,1.08231934,4130.6,4130.5,0.976]
[1760330372463,1.08231934,4130.6,4130.0,0.976]
[1760330372464,0.43547,4130.1,4130.0,0.976]
[1760330372658,3.05965764,4131.2,4130.5,1.267]
[1760330372659,0.86307661,4131.2,4130.5,1.267]
[1760330372959,3.2078,4131.8,4131.6,0.3149]
[1760330373161,3.2078,4131.8,4131.6,2.59003764]
[1760330373357,0.86307661,4132.7,4131.6,3.05713764]
[1760330373559,0.43522,4132.5,4131.6,3.05713764]
[1760330373765,0.4352,4132.7,4131.6,3.05713764]
[1760330373968,0.43522,4132.6,4131.6,3.05713764]
[1760330374467,0.43522,4132.6,4132.5,0.6482]
[1760330374659,1.08180398,4132.6,4132.5,0.6482]
[1760330375263,1.08180398,4132.6,4132.5,0.65032804]
[1760330375461,1.08421899,4132.6,4132.5,0.65032804]
[1760330376371,1.08421899,4132.6,4132.5,0.00212804]
[1760330378064,4.25810898,4132.6,4132.5,0.00212804]
[1760330378958,1.08823,4131.9,4131.2,0.4671]
[1760330379269,0.43534,4131.3,4131.2,0.782]
[1760330379768,0.43534,4131.3,4131.1,3.2078]
[1760330379968,0.43534,4131.3,4131.1,3.2106955]
[1760330380475,0.43534,4131.3,4131.1,3.6777955]
[1760330380767,0.43534,4131.3,4131.1,3.2106955]
[1760330381568,0.43534,4131.3,4131.1,3.6777955]
[1760330382769,0.43534,4131.3,4131.1,3.2106955]
[1760330384173,0.43534,4131.3,4131.1,0.0028955]
[1760330384375,7.0093857,4131.2,4131.1,0.0028955]
[1760330384869,0.4355,4129.9,4129.7,3.2078]
[1760330385069,0.4355,4129.9,4129.8,0.4397]
[1760330385770,0.4355,4129.9,4129.8,0.44162995]
[1760330386268,3.2078,4130.7,4129.8,1.03961995]
[1760330386269,0.43548,4130.1,4129.8,1.03961995]
[1760330386466,0.43548,4130.1,4130.0,0.9212]
[1760330387767,0.43548,4130.1,4130.0,0.6364]
[1760330387971,0.43548,4130.1,4129.8,0.00192995]
[1760330387972,0.43549,4129.9,4129.8,0.00192995]
[1760330388276,3.6122443,4129.9,4129.8,0.00192995]
[1760330388971,0.43556,4129.3,4129.2,3.2078]
[1760330389268,0.43554,4129.5,4129.4,0.2848]
[1760330389468,0.43554,4129.5,4129.4,1.0276]
[1760330390071,0.00297813,4129.5,4129.4,1.46547723]
[1760330393074,0.43532,4131.6,4131.3,0.4508]
[1760330393271,0.43532,4131.6,4131.5,0.6364]
[1760330393467,3.2078,4132.3,4131.5,0.1856]
[1760330393674,0.43529,4131.9,4131.5,0.1856]
[1760330394073,0.43739335,4131.9,4131.6,0.4508]
[1760330394375,0.43739335,4131.9,4131.8,0.4508]
[1760330394773,0.00210335,4131.9,4131.8,0.4508]
[1760330396879,0.00210335,4131.9,4131.8,0.7356]
[1760330397676,0.00210335,4131.9,4131.8,1.0276]
[1760330397874,3.2298,4132.8,4132.7,0.5768]
[1760330397875,0.022,4132.8,4132.7,0.5768]
[1760330398074,0.022,4132.8,4132.7,1.0276]
[1760330398274,0.022,4132.8,4132.7,0.4508]
[1760330398776,0.43508,4133.8,4132.7,3.6586]
[1760330398977,0.00225017,4133.8,4133.3,0.43512]
[1760330399185,3.19165156,4133.7,4133.5,0.6364]
[1760330399385,3.19165156,4133.7,4133.6,0.4508]
[1760330399582,0.00225017,4133.8,4133.6,0.4351]
[1760330399783,0.00225017,4133.8,4133.7,0.4508]
[1760330400868,0.43514,4133.2,4133.0,0.6364]
[1760330401283,0.43518,4132.9,4132.2,0.4508]
[1760330401681,3.14309463,4132.8,4132.2,0.4508]
[1760330402584,3.14309463,4132.8,4132.0,0.62086]
[1760330402585,3.14309463,4132.8,4132.7,3.66037755]
[1760330402982,3.2078,4133.4,4132.8,0.4508]
[1760330403283,3.2078,4133.4,4132.7,3.20957755]
[1760330403284,0.43519,4132.8,4132.7,3.20957755]
[1760330404388,0.43519,4132.8,4132.7,3.66037755]
[1760330405277,0.43519,4132.8,4132.7,3.20957755]
[1760330406880,0.43519,4132.8,4132.2,2.7359]
[1760330406881,0.43524,4132.3,4132.2,2.7359]
[1760330407081,0.43534,4131.3,4131.2,3.6586]
[1760330407885,3.2078,4131.9,4131.6,0.4508]
[1760330408280,3.07627864,4131.8,4131.6,0.4508]
[1760330408483,0.43531,4131.7,4131.6,0.4508]
[1760330409581,3.07627864,4131.8,4131.6,0.4508]
[1760330409784,3.2078,4132.5,4132.0,0.1856]
[1760330409988,0.43526,4132.1,4132.0,0.1856]
[1760330410678,0.43526,4132.1,4132.0,0.6364]
[1760330410886,3.61321678,4132.1,4132.0,0.1856]
[1760330411079,3.61321678,4132.1,4132.0,0.6364]
[1760330412386,3.61321678,4132.1,4132.0,0.1856]
[1760330412789,3.61321678,4132.1,4131.5,0.1856]
[1760330412790,0.43531,4131.6,4131.5,0.1856]
[1760330412985,3.2078,4131.8,4131.5,0.62092]
[1760330413282,3.2078,4131.8,4131.7,0.4508]
[1760330416789,3.2078,4131.8,4131.7,1.0384]
[1760330417186,3.2078,4131.8,4131.7,0.7356]
[1760330418182,3.2078,4131.8,4131.7,1.0384]
[1760330419684,3.2078,4131.8,4131.5,5.86579477]
[1760330419685,0.43526,4132.1,4132.0,1.2212]
[1760330420690,3.2078,4132.4,4132.3,1.0502]
[1760330422994,0.4352,4132.7,4132.6,1.0502]
[1760330425288,3.53064933,4132.7,4132.5,0.171]
[1760330425491,3.53064933,4132.7,4132.6,0.4594]
[1760330425889,4.17411037,4132.7,4132.6,0.4594]
[1760330427194,3.2078,4133.0,4132.7,0.4594]
[1760330427195,0.43519,4132.8,4132.7,0.4594]
[1760330427399,3.2078,4133.0,4132.9,1.0502]
[1760330427695,0.86532678,4133.8,4133.0,0.171]
[1760330427696,0.43514,4133.3,4133.0,0.171]
[1760330427895,3.2078,4133.5,4133.3,0.4594]
[1760330428195,3.64291,4133.5,4133.4,0.7474]
[1760330428496,4.28645225,4133.5,4133.4,0.4594]
[1760330429099,4.28645225,4133.5,4133.0,0.171]
[1760330429100,0.43515,4133.1,4133.0,0.171]
[1760330429787,0.43515,4133.1,4133.0,0.9184]
[1760330430699,1.07803736,4133.1,4133.0,0.6304]
[1760330430901,0.00225017,4133.8,4133.1,0.4594]
[1760330431099,0.00225017,4133.8,4133.7,0.7474]
[1760330431100,0.43733017,4133.8,4133.7,0.7474]
[1760330432896,0.43733017,4133.8,4133.7,1.0502]
[1760330433295,0.00225017,4133.8,4133.7,1.0502]
[1760330433694,0.00225017,4133.8,4133.7,0.4594]
[1760330433896,0.00225017,4133.8,4133.7,0.7652]
[1760330437105,0.00225017,4133.8,4133.7,0.4594]
[1760330437703,0.00225017,4133.8,4133.7,0.7652]
[1760330439417,0.00225017,4133.8,4133.7,0.4594]
[1760330439912,0.00225017,4133.8,4133.5,0.171]
[1760330439913,0.43509,4133.7,4133.5,0.171]
[1760330440116,3.2078,4133.6,4133.5,0.6341]
[1760330440410,6.38089694,4133.6,4133.5,0.6341]
[1760330443015,7.02120218,4133.6,4133.5,0.6341]
[1760330447312,6.38089694,4133.6,4133.5,1.2429]
[1760330447721,3.2078,4133.6,4133.5,1.2429]
[1760330448220,0.00225017,4133.8,4133.7,1.0505]
[1760330450815,1.08738,4135.1,4135.0,0.6311]
[1760330450816,0.86307661,4135.1,4135.0,0.6311]
[1760330451020,0.64162787,4135.1,4135.0,0.9319]
[1760330451221,3.7911435,4135.1,4135.0,0.9319]
[1760330451410,3.64274,4135.2,4135.0,0.7882]
[1760330451411,3.2078,4135.2,4135.0,0.7882]
[1760330451619,3.2078,4135.2,4135.1,0.7475]
[1760330451821,3.2103807,4135.2,4135.1,0.74937411]
[1760330452021,3.2103807,4135.2,4135.1,0.44857411]
[1760330452415,3.2103807,4135.2,4135.1,0.74937411]
[1760330452623,3.2103807,4135.2,4135.1,1.05237411]
[1760330453927,0.0025807,4135.2,4135.1,1.05237411]
[1760330456022,3.2078,4136.3,4135.1,1.05237411]
[1760330456023,0.43483,4136.2,4136.1,0.4467]
[1760330456327,3.08888164,4136.2,4136.1,0.7475]
[1760330456628,3.08888164,4136.2,4136.1,1.0505]
[1760330457119,0.00296189,4136.2,4136.1,1.0505]
[1760330460529,3.2078,4136.8,4136.7,1.0505]
[1760330460832,3.2078,4136.8,4136.7,0.4467]
[1760330461529,3.21029053,4136.8,4136.7,0.4467]
[1760330461930,3.21029053,4136.8,4136.7,0.7475]
[1760330464128,3.21029053,4136.8,4136.7,0.4467]
[1760330466026,3.21029053,4136.8,4136.7,0.7475]
[1760330466430,3.21029053,4136.8,4136.7,1.0505]
[1760330466932,3.21029053,4136.8,4136.7,1.48528]
[1760330467142,0.022,4137.8,4137.2,1.0505]
[1760330467143,3.2078,4137.3,4137.2,1.0505]
[1760330467434,0.022,4137.8,4137.7,0.6038]
[1760330467730,0.022,4137.8,4137.7,1.0505]
[1760330468123,0.02431359,4137.8,4137.7,1.0505]
[1760330468833,0.02431359,4137.8,4137.7,0.4467]
[1760330469225,0.02431359,4137.8,4137.7,0.7475]
[1760330469433,0.02431359,4137.8,4137.7,1.0505]
[1760330470033,0.02431359,4137.8,4137.7,0.4467]
[1760330472236,0.02431359,4137.8,4137.7,1.0505]
[1760330472438,0.02431359,4137.8,4137.7,0.4467]
[1760330472637,0.02431359,4137.8,4137.7,0.7475]
[1760330473037,0.02431359,4137.8,4137.7,0.4467]
[1760330474530,4.83125689,4137.8,4137.0,0.6311]
[1760330474737,3.2078,4137.4,4137.0,0.1844]
[1760330475041,0.43473,4137.2,4137.1,0.3008]
[1760330475435,0.43473,4137.2,4137.1,0.7475]
[1760330478044,3.2078,4137.4,4137.2,0.7062]
[1760330478340,0.63363469,4137.3,4137.2,0.7062]
[1760330478541,3.64251,4137.4,4137.2,0.2957]
[1760330478741,3.64251,4137.4,4137.3,0.7062]
[1760330479147,0.43471,4137.4,4137.3,0.7062]
[1760330479345,0.02431359,4137.8,4137.5,0.1726]
[1760330479647,0.02431359,4137.8,4137.7,0.9825]
[1760330479847,0.65840126,4137.8,4137.7,0.9825]
[1760330480146,1.09306126,4137.8,4137.7,0.4105]
[1760330480351,0.65840126,4137.8,4137.7,0.9825]
[1760330480543,0.02431359,4137.8,4137.7,0.9825]
[1760330482248,0.65923543,4137.8,4137.7,0.9825]
[1760330483151,0.65923543,4137.8,4137.7,1.41717]
[1760330483648,0.02431359,4137.8,4137.7,1.41717]
[1760330485253,0.66011575,4137.8,4137.7,1.41717]
[1760330485946,1.09477575,4137.8,4137.7,0.9825]
[1760330486343,0.66011575,4137.8,4137.7,0.9825]
[1760330486548,0.66011575,4137.8,4137.7,1.41717]
[1760330488050,0.66011575,4137.8,4137.7,0.9825]
[1760330490545,0.66011575,4137.8,4137.7,0.4105]
[1760330490851,3.75570306,4137.8,4137.7,0.4105]
[1760330491444,4.61877967,4137.8,4137.7,0.4105]
[1760330492250,3.75570306,4137.8,4137.7,0.4105]
[1760330493249,4.61877967,4137.8,4137.7,0.4105]
[1760330495746,0.43467,4137.7,4137.5,0.1726]
[1760330496048,3.75570306,4137.8,4137.0,0.1844]
[1760330496049,1.08674,4137.5,4137.0,0.1844]
[1760330496350,1.30164119,4137.2,4137.1,0.4105]
[1760330496549,1.93744335,4137.2,4137.1,0.4105]
[1760330496752,5.07107631,4137.2,4137.1,0.4105]
[1760330497250,4.20415512,4137.2,4137.1,0.4105]
[1760330499060,0.43478,4136.7,4136.6,0.4105]
[1760330499351,1.08697,4136.6,4136.1,0.4105]
[1760330499553,3.77975753,4136.7,4135.4,3.2078]
[1760330499554,1.95351168,4136.2,4135.6,0.4105]
[1760330499752,0.43488,4135.7,4135.4,3.2078]
[1760330500053,0.43488,4135.7,4135.6,0.4105]
[1760330500249,1.07117486,4135.7,4135.6,0.4105]
[1760330500450,4.25705265,4135.7,4135.6,0.4105]
[1760330502349,3.62075779,4135.7,4135.6,0.4105]
[1760330502756,4.25648446,4135.7,4135.6,0.4105]
[1760330503142,3.62075779,4135.7,4135.6,0.4105]
[1760330503346,3.62075779,4135.7,4135.4,3.2078]
[1760330503555,3.62075779,4135.7,4135.5,0.5831]
[1760330503753,3.62075779,4135.7,4135.5,0.1726]
[1760330503953,3.62075779,4135.7,4135.6,0.4105]
[1760330504547,0.43493,4135.2,4135.1,0.42337411]
[1760330504951,3.52776642,4135.2,4135.1,0.42337411]
[1760330506053,3.52776642,4135.2,4135.1,0.00187411]
[1760330506948,0.435,4134.6,4134.5,0.5793]
[1760330507149,0.43504,4134.2,4134.1,0.4067]
[1760330507750,0.43702359,4134.2,4134.1,0.40858257]
[1760330511650,0.00198359,4134.2,4134.1,0.98468257]
[1760330512161,0.00198359,4134.2,4134.1,0.40858257]
[1760330512359,0.43702359,4134.2,4134.1,0.40858257]
[1760330512756,3.62164728,4134.2,4134.1,0.40858257]
[1760330513766,3.62164728,4134.2,4134.1,0.00188257]
[1760330513967,0.43509,4133.7,4133.5,0.162]
[1760330514158,0.43509,4133.7,4133.6,0.4067]
[1760330514463,3.59083075,4133.7,4133.6,0.4067]
[1760330514661,3.59083075,4133.7,4133.5,0.162]
[1760330514964,3.59083075,4133.7,4133.5,0.16381277]
[1760330515664,3.59083075,4133.7,4133.5,0.57051277]
[1760330515866,3.59083075,4133.7,4133.6,0.4067]
[1760330516054,0.00198359,4134.2,4134.0,0.1776]
[1760330516364,0.43702359,4134.2,4134.1,0.4067]
[1760330516756,3.56596761,4134.2,4134.1,0.4067]
[1760330517155,0.4351,4133.6,4133.5,0.16381277]
[1760330517363,0.4351,4133.6,4133.5,0.57051277]
[1760330517561,3.57416329,4133.6,4133.5,0.57051277]
[1760330517859,3.57416329,4133.6,4133.5,1.14661277]
[1760330519660,3.57416329,4133.6,4133.5,0.57051277]
[1760330521963,3.57416329,4133.6,4133.5,0.00181277]
[1760330522357,3.57416329,4133.6,4133.5,0.17941277]
[1760330522769,0.43519,4132.8,4132.7,0.4067]
[1760330523663,0.43519,4132.8,4132.7,0.40963363]
[1760330524066,0.43519,4132.8,4132.7,0.68733363]
[1760330524368,0.43519,4132.8,4132.7,0.98573363]
[1760330524761,0.43517,4133.0,4132.9,0.2777]
[1760330525169,3.56527664,4133.0,4132.9,0.2777]
[1760330525366,3.56527664,4133.0,4132.9,0.6844]
[1760330526065,3.2078,4133.1,4132.9,0.2777]
[1760330526368,3.2078,4133.1,4133.0,1.59557]
[1760330526573,3.2078,4133.1,4133.0,1.1604]
[1760330527860,3.2078,4133.1,4133.0,0.862]
[1760330528467,3.2078,4133.1,4133.0,1.1604]
[1760330530264,3.84427125,4133.1,4133.0,0.5843]
[1760330531173,6.97510308,4133.1,4133.0,0.5843]
[1760330532263,0.43519,4132.8,4132.7,0.00293363]
[1760330532566,0.43519,4132.8,4132.7,0.40963363]
[1760330532567,4.23774235,4132.8,4132.7,0.40963363]
[1760330532961,5.10417403,4132.8,4132.7,0.00293363]
[1760330533164,5.10417403,4132.8,4132.7,0.40963363]
[1760330533466,4.23774235,4132.8,4132.7,0.40963363]
[1760330534269,4.23774235,4132.8,4132.7,0.68733363]
[1760330534270,1.07166125,4132.8,4132.7,0.68733363]
[1760330534470,0.63647125,4132.8,4132.7,0.68733363]
[1760330534672,0.63647125,4132.8,4132.7,0.98573363]
[1760330541373,0.63647125,4132.8,4132.7,6.66144614]
[1760330541567,0.63647125,4132.8,4132.7,4.07320717]
[1760330541772,1.29977108,4133.6,4132.7,4.07320717]
[1760330541773,3.6429,4133.7,4133.6,0.5713]
[1760330542070,3.6429,4133.7,4133.6,0.4141]
[1760330542279,3.6429,4133.7,4133.6,1.95783677]
[1760330542473,3.6429,4133.7,4133.6,2.52913677]
[1760330543581,3.6429,4133.7,4133.6,0.9854]
[1760330543878,3.6429,4133.7,4133.6,0.4141]
[1760330544079,3.6429,4133.7,4133.6,0.6986]
[1760330544575,3.6429,4133.7,4133.6,0.9854]
[1760330545485,3.6429,4133.7,4133.6,0.4141]
[1760330545874,4.50798085,4133.7,4133.6,0.6986]
[1760330546079,4.50798085,4133.7,4133.6,0.9854]
[1760330546284,3.2078,4133.7,4133.6,0.9854]
[1760330547872,3.2078,4133.7,4133.6,0.7009]
[1760330548078,3.2078,4133.7,4133.6,0.4141]
[1760330548581,3.2078,4133.7,4133.5,0.1604]
[1760330548582,0.4351,4133.6,4133.5,0.1604]
[1760330548877,3.57480688,4133.6,4133.5,0.5745]
[1760330549283,0.43514,4133.2,4133.0,0.5745]
[1760330549677,0.43514,4133.2,4132.7,0.00293363]
[1760330549678,3.13970688,4133.1,4132.7,0.00293363]
[1760330549878,0.43519,4132.8,4132.7,0.00293363]
[1760330550082,0.43519,4132.8,4132.7,0.41703363]
[1760330550283,0.43519,4132.8,4132.7,0.00293363]
[1760330550284,3.52626772,4132.8,4132.7,0.00293363]
[1760330550982,3.52626772,4132.8,4131.9,3.2078]
[1760330550983,0.43537,4131.1,4131.0,0.5745]
[1760330551481,3.2078,4131.7,4131.1,0.4141]
[1760330551787,0.43536,4131.2,4131.1,0.4141]
[1760330552079,3.64823096,4131.2,4131.1,0.00303252]
[1760330552379,3.64823096,4131.2,4131.1,0.41713252]
[1760330553977,3.21287096,4131.2,4131.1,0.41713252]
[1760330557582,3.21287096,4131.2,4131.1,0.70163252]
[1760330557583,0.0019577,4131.2,4131.1,0.70163252]
[1760330557785,0.0019577,4131.2,4131.1,0.98843252]
[1760330557984,0.0019577,4131.2,4131.1,1.42380252]
[1760330558381,0.0019577,4131.2,4131.1,0.98843252]
[1760330559586,3.2078,4131.7,4131.6,0.5713]
[1760330559789,3.2078,4131.7,4131.6,1.42071]
[1760330560286,0.43527,4132.1,4132.0,0.859]
[1760330560588,0.43715524,4132.1,4132.0,0.859]
[1760330562586,0.00188524,4132.1,4132.0,1.1458]
[1760330563390,0.00188524,4132.1,4132.0,0.5745]
[1760330564289,3.13174806,4132.1,4132.0,0.1604]
[1760330564588,3.13174806,4132.1,4132.0,0.589]
[1760330565888,3.13174806,4132.1,4131.5,0.1604]
[1760330565889,3.13174806,4132.1,4131.5,0.589]
[1760330566086,3.13174806,4132.1,4131.1,0.00303252]
[1760330566087,0.43536,4131.2,4131.1,0.00303252]
[1760330566482,3.56763234,4131.2,4131.1,0.00303252]
[1760330566879,3.56763234,4131.2,4131.1,0.41183252]
[1760330567087,3.56763234,4131.2,4131.1,0.00303252]
[1760330567381,0.43542,4130.6,4130.5,3.3682]
[1760330567586,0.43542,4130.6,4130.5,3.777]
[1760330567784,3.1236154,4130.6,4129.9,3.2078]
[1760330567987,0.43551,4129.8,4129.5,0.1733]
[1760330568191,0.43552,4129.7,4129.5,0.1733]
[1760330568490,0.43552,4129.7,4129.6,0.4088]
[1760330568688,3.14498407,4129.6,4129.5,0.16868449]
[1760330568990,6.35278407,4129.7,4129.5,0.57748449]
[1760330569290,3.2078,4129.7,4129.6,0.4088]
[1760330572289,3.2078,4129.7,4129.6,0.6719]
[1760330573894,3.2078,4129.7,4129.5,0.16868449]
[1760330573895,0.43552,4129.6,4129.5,0.57748449]
[1760330574790,6.39189541,4129.7,4129.6,0.4088]
[1760330574993,3.2078,4129.7,4129.6,0.4088]
[1760330575390,3.26525,4131.2,4129.5,0.16868449]
[1760330575391,3.2078,4130.3,4130.1,0.4088]
[1760330575585,3.2078,4130.3,4130.2,0.6719]
[1760330575986,3.2078,4130.3,4130.2,0.4088]
[1760330580790,3.2078,4130.3,4129.7,0.43551]
[1760330580791,0.4355,4129.8,4129.7,0.4088]
[1760330581094,0.43552,4129.7,4129.5,0.57748449]
[1760330581388,3.60352339,4129.8,4129.6,0.4088]
[1760330581592,0.43552,4129.7,4129.6,0.4088]
[1760330582188,3.58975573,4129.7,4129.5,0.16868449]
[1760330582495,3.58975573,4129.7,4129.6,0.4088]
[1760330583301,3.15423573,4129.7,4129.6,0.4088]
[1760330583798,3.61207856,4129.8,4129.6,0.4088]
[1760330583995,3.2078,4130.3,4129.6,0.4088]
[1760330584199,3.2078,4130.3,4129.5,0.16868449]
[1760330584200,3.2078,4130.3,4130.1,0.4088]
[1760330584395,3.2078,4130.3,4130.0,0.4294]
[1760330584396,3.2078,4130.3,4130.2,1.38106]
[1760330584699,3.2078,4130.3,4130.2,0.4088]
[1760330586201,3.2078,4130.3,4130.2,0.9456]
[1760330586601,3.6432,4130.8,4130.2,1.38105]
[1760330586797,3.6432,4130.8,4130.5,0.1663]
[1760330587002,3.17372451,4130.7,4130.6,0.9456]
[1760330587501,3.2078,4130.8,4130.6,0.9456]
[1760330587798,3.2078,4130.8,4130.7,0.9456]
[1760330588891,0.43539,4130.9,4130.7,0.5368]
[1760330589096,0.43539,4130.9,4130.5,0.1663]
[1760330589097,0.43536,4131.2,4131.1,0.4088]
[1760330589400,3.19554344,4131.2,4131.0,0.1663]
[1760330589707,3.19554344,4131.2,4131.1,0.4088]
[1760330590405,3.19554344,4131.2,4130.6,0.4088]
[1760330590703,3.64321,4130.7,4130.6,0.4088]
[1760330591094,6.74589882,4130.7,4130.6,0.4088]
[1760330591301,6.31048882,4130.7,4130.6,0.6719]
[1760330592201,6.31048882,4130.7,4130.6,0.4088]
[1760330593001,6.31048882,4130.7,4130.0,0.5751]
[1760330593002,8.0314303,4130.7,4130.0,0.5751]
[1760330593203,3.2078,4130.1,4130.0,0.5751]
[1760330594406,3.84108228,4130.1,4130.0,0.5751]
[1760330594612,3.2078,4130.1,4130.0,0.5751]
[1760330594912,3.2078,4130.1,4130.0,1.1119]
[1760330595707,3.64322,4130.6,4130.5,0.5751]
[1760330595909,4.27699109,4130.6,4130.5,0.5751]
[1760330596106,7.41981872,4130.6,4130.5,0.5751]
[1760330599813,7.41981872,4130.6,4130.5,0.8382]
[1760330600111,7.41981872,4130.6,4130.5,0.5751]
[1760330601508,7.41981872,4130.6,4130.5,0.1663]
[1760330602115,6.98439872,4130.6,4130.0,0.5746]
[1760330602302,0.43546,4130.2,4130.1,0.4083]
[1760330602507,1.06923109,4130.2,4130.1,0.4083]
[1760330603609,1.06973203,4130.2,4130.1,0.4083]
[1760330605218,4.22391709,4130.2,4130.0,0.1663]
[1760330605414,0.4355,4129.8,4129.7,0.4083]
[1760330606019,3.58968506,4129.8,4129.7,0.4083]
[1760330606618,3.15418506,4129.8,4129.7,0.6705]
[1760330606811,0.43549,4130.0,4129.9,0.2622]
[1760330607018,1.06987367,4130.0,4129.9,0.4083]
[1760330607222,4.27828109,4130.0,4129.9,0.4083]
[1760330607423,0.63438367,4130.0,4129.9,0.9371]
[1760330608124,0.63438367,4130.0,4129.9,0.6705]
[1760330608322,0.43548,4130.1,4129.9,0.2622]
[1760330608623,0.43548,4130.1,4130.0,0.5673]
[1760330608824,1.06979867,4130.1,4130.0,0.5673]
[1760330610019,4.17464757,4130.1,4130.0,0.159]
[1760330610214,6.94696757,4130.1,4130.0,0.5673]
[1760330610420,3.84211867,4130.1,4130.0,1.0961]
[1760330611520,3.2078,4130.1,4130.0,1.0961]
[1760330612327,0.43546,4130.2,4130.0,1.0961]
[1760330612624,0.43546,4130.2,4130.1,0.4083]
[1760330613027,3.64322,4130.6,4130.5,0.8295]
[1760330613216,3.84306148,4130.6,4130.5,0.8295]
[1760330613616,3.2078,4131.1,4131.0,0.159]
[1760330613820,3.2078,4131.1,4131.0,0.5673]
[1760330613821,3.84344866,4131.1,4131.0,0.5673]
[1760330614729,7.06294223,4131.1,4131.0,0.5673]
[1760330615229,7.06294223,4131.1,4131.0,0.159]
[1760330615925,7.06294223,4131.1,4131.0,0.5673]